[Event "Early-Titled-Tuesday-Blitz-February-13-2024"]
[Site "Chess.com"]
[Date "2024.02.13"]
[Round "4"]
[White "noblerone"]
[Black "Austen48"]
[Result "1-0"]
[WhiteElo "2499"]
[BlackElo "2202"]
[TimeControl "180+1"]
[EndTime "8:42:59 PST"]
[Termination "noblerone won on time"]

1. d4 {[%clk 0:02:58.3]} 1... Nf6 {[%clk 0:02:44]} 2. c4 {[%clk 0:02:58]} 2...
e6 {[%clk 0:02:43.8]} 3. Nc3 {[%clk 0:02:55.7]} 3... Bb4 {[%clk 0:02:43]} 4. Qb3
{[%clk 0:02:56.3]} 4... a5 {[%clk 0:02:38]} 5. a3 {[%clk 0:02:54.3]} 5... Bxc3+
{[%clk 0:02:37.2]} 6. Qxc3 {[%clk 0:02:55.2]} 6... d5 {[%clk 0:02:31.3]} 7. Bg5
{[%clk 0:02:53.7]} 7... O-O {[%clk 0:02:25.2]} 8. e3 {[%clk 0:02:53.4]} 8...
Nbd7 {[%clk 0:02:21.4]} 9. Nf3 {[%clk 0:02:52.9]} 9... h6 {[%clk 0:02:20.4]} 10.
Bh4 {[%clk 0:02:52.8]} 10... c6 {[%clk 0:02:17.7]} 11. Bd3 {[%clk 0:02:51.7]}
11... a4 {[%clk 0:02:09.4]} 12. O-O {[%clk 0:02:38.1]} 12... Qb6 {[%clk
0:02:01.4]} 13. c5 {[%clk 0:02:25.6]} 13... Qa5 {[%clk 0:01:58.9]} 14. Qc2
{[%clk 0:02:14.6]} 14... Re8 {[%clk 0:01:58]} 15. Bg3 {[%clk 0:02:07.3]} 15...
Nf8 {[%clk 0:01:55.3]} 16. Bd6 {[%clk 0:02:01.3]} 16... N6d7 {[%clk 0:01:35.1]}
17. Rac1 {[%clk 0:01:52.9]} 17... Qd8 {[%clk 0:01:30.9]} 18. e4 {[%clk
0:01:49.3]} 18... dxe4 {[%clk 0:01:26.8]} 19. Bxe4 {[%clk 0:01:49.6]} 19... Qf6
{[%clk 0:01:12]} 20. Qe2 {[%clk 0:01:46.6]} 20... Ng6 {[%clk 0:00:59.7]} 21.
Rfe1 {[%clk 0:01:43.1]} 21... Nf4 {[%clk 0:00:58.5]} 22. Qe3 {[%clk 0:01:41.8]}
22... g5 {[%clk 0:00:48.5]} 23. Ne5 {[%clk 0:01:35.4]} 23... Nd5 {[%clk
0:00:39.1]} 24. Qh3 {[%clk 0:01:31.2]} 24... Qg7 {[%clk 0:00:26.5]} 25. Ng4
{[%clk 0:01:13.5]} 25... f5 {[%clk 0:00:18.3]} 26. Nxh6+ {[%clk 0:01:13.3]}
26... Kh8 {[%clk 0:00:11.2]} 27. Nxf5+ {[%clk 0:01:10.5]} 27... Qh7 {[%clk
0:00:11.2]} 28. Qxh7+ {[%clk 0:01:06.7]} 28... Kxh7 {[%clk 0:00:11]} 29. Ng3+
{[%clk 0:00:50.7]} 29... Kg7 {[%clk 0:00:10.9]} 30. Nh5+ {[%clk 0:00:48.3]}
30... Kh6 {[%clk 0:00:10.1]} 31. Ng3 {[%clk 0:00:45.7]} 31... N7f6 {[%clk
0:00:10.2]} 32. Bf3 {[%clk 0:00:44]} 32... Bd7 {[%clk 0:00:09.5]} 33. Be5 {[%clk
0:00:44.1]} 33... Rg8 {[%clk 0:00:06.4]} 34. Ne4 {[%clk 0:00:43.9]} 34... Nxe4
{[%clk 0:00:05.4]} 35. Bxe4 {[%clk 0:00:44.8]} 35... Nf4 {[%clk 0:00:05.5]} 36.
g3 {[%clk 0:00:43.5]} 36... Nd5 {[%clk 0:00:05.1]} 37. Kg2 {[%clk 0:00:42.4]}
37... Raf8 {[%clk 0:00:05]} 38. Bd6 {[%clk 0:00:38.3]} 38... Rf7 {[%clk
0:00:04]} 39. Kf1 {[%clk 0:00:36.1]} 39... e5 {[%clk 0:00:03.1]} 40. Bxe5 {[%clk
0:00:33.7]} 40... Bh3+ {[%clk 0:00:03.6]} 41. Ke2 {[%clk 0:00:32.9]} 41... Rgf8
{[%clk 0:00:03.8]} 42. f3 {[%clk 0:00:32.4]} 42... Nf6 {[%clk 0:00:02.8]} 43.
Bxf6 {[%clk 0:00:32.2]} 43... Rxf6 {[%clk 0:00:03]} 44. Ke3 {[%clk 0:00:33]}
44... g4 {[%clk 0:00:02.5]} 45. f4 {[%clk 0:00:32.7]} 45... Re6 {[%clk
0:00:02.4]} 46. Kd3 {[%clk 0:00:32.7]} 46... Rfe8 {[%clk 0:00:02.3]} 47. Re3
{[%clk 0:00:31.8]} 47... Bg2 {[%clk 0:00:01.3]} 48. Rce1 {[%clk 0:00:32.4]} 1-0

[Event "Early-Titled-Tuesday-Blitz-February-13-2024"]
[Site "Chess.com"]
[Date "2024.02.13"]
[Round "4"]
[White "Oleksandr_Bortnyk"]
[Black "Hovik_Hayrapetyan"]
[Result "1-0"]
[WhiteElo "3079"]
[BlackElo "2895"]
[TimeControl "180+1"]
[EndTime "8:43:01 PST"]
[Termination "Oleksandr_Bortnyk won by resignation"]

1. d4 {[%clk 0:03:00.9]} 1... Nf6 {[%clk 0:02:59.9]} 2. Nc3 {[%clk 0:03:00.4]}
2... d5 {[%clk 0:02:59.5]} 3. Bf4 {[%clk 0:02:58.5]} 3... a6 {[%clk 0:02:58.1]}
4. e3 {[%clk 0:02:57.9]} 4... e6 {[%clk 0:02:55.2]} 5. a3 {[%clk 0:02:57.2]}
5... c5 {[%clk 0:02:51.8]} 6. Nf3 {[%clk 0:02:57.5]} 6... Nc6 {[%clk 0:02:51.7]}
7. Bd3 {[%clk 0:02:57.2]} 7... Bd6 {[%clk 0:02:49]} 8. dxc5 {[%clk 0:02:57.4]}
8... Bxc5 {[%clk 0:02:46.5]} 9. O-O {[%clk 0:02:57.2]} 9... O-O {[%clk
0:02:46.3]} 10. e4 {[%clk 0:02:57.1]} 10... dxe4 {[%clk 0:02:19.9]} 11. Nxe4
{[%clk 0:02:58]} 11... Be7 {[%clk 0:02:13.4]} 12. Qe2 {[%clk 0:02:52.6]} 12...
Nd4 {[%clk 0:02:00.4]} 13. Nxd4 {[%clk 0:02:42.2]} 13... Qxd4 {[%clk 0:02:01.3]}
14. c3 {[%clk 0:02:33.8]} 14... Qa4 {[%clk 0:01:58]} 15. b4 {[%clk 0:02:28.1]}
15... Bd7 {[%clk 0:01:41.7]} 16. Rfd1 {[%clk 0:02:24.4]} 16... Bc6 {[%clk
0:01:36.2]} 17. Bc2 {[%clk 0:01:49.2]} 17... Qb5 {[%clk 0:01:35.5]} 18. c4
{[%clk 0:01:45]} 18... Qf5 {[%clk 0:01:33.7]} 19. Nxf6+ {[%clk 0:01:43.5]} 19...
Qxf6 {[%clk 0:01:34.6]} 20. Be5 {[%clk 0:01:41]} 20... Qg5 {[%clk 0:01:34.7]}
21. f4 {[%clk 0:01:40.3]} 21... Qh6 {[%clk 0:01:22.9]} 22. Rd3 {[%clk 0:01:40]}
22... f5 {[%clk 0:01:12.4]} 23. Rh3 {[%clk 0:01:35.9]} 23... Qg6 {[%clk
0:01:12.2]} 24. Rg3 {[%clk 0:01:35.8]} 24... Qf7 {[%clk 0:01:07.8]} 25. Rxg7+
{[%clk 0:01:35]} 25... Qxg7 {[%clk 0:01:07.9]} 26. Bxg7 {[%clk 0:01:35.8]} 26...
Kxg7 {[%clk 0:01:08.8]} 27. Rd1 {[%clk 0:01:13.5]} 27... Bf6 {[%clk 0:01:05.6]}
28. Qxe6 {[%clk 0:01:06.5]} 28... Rae8 {[%clk 0:00:59.2]} 29. Qxf5 {[%clk
0:01:05.5]} 29... Bd4+ {[%clk 0:00:50.6]} 30. Rxd4 {[%clk 0:01:05.3]} 30... Rxf5
{[%clk 0:00:51.5]} 31. Bxf5 {[%clk 0:01:05.8]} 31... Re2 {[%clk 0:00:51.9]} 32.
g4 {[%clk 0:00:56]} 32... Rg2+ {[%clk 0:00:48.5]} 33. Kf1 {[%clk 0:00:56.1]}
33... Rxh2 {[%clk 0:00:49.4]} 34. Be4 {[%clk 0:00:51.8]} 34... Bxe4 {[%clk
0:00:43.5]} 35. Rxe4 {[%clk 0:00:52.7]} 35... Kf6 {[%clk 0:00:44.4]} 36. a4
{[%clk 0:00:40.5]} 36... Rb2 {[%clk 0:00:40.2]} 37. c5 {[%clk 0:00:39.4]} 37...
Ra2 {[%clk 0:00:38.1]} 38. a5 {[%clk 0:00:39.7]} 38... Rb2 {[%clk 0:00:38.3]}
39. Rd4 {[%clk 0:00:39]} 39... Ke6 {[%clk 0:00:38.2]} 40. g5 {[%clk 0:00:37.7]}
40... Kf5 {[%clk 0:00:37.3]} 41. Ke1 {[%clk 0:00:38.2]} 41... Kg4 {[%clk
0:00:32]} 42. Kd1 {[%clk 0:00:37.9]} 42... Kf5 {[%clk 0:00:28.7]} 43. Kc1 {[%clk
0:00:37.4]} 43... Rf2 {[%clk 0:00:29.2]} 44. Rd7 {[%clk 0:00:15]} 44... Rxf4
{[%clk 0:00:27.7]} 45. Rf7+ {[%clk 0:00:14.8]} 45... Kxg5 {[%clk 0:00:28]} 46.
Rxf4 {[%clk 0:00:15.7]} 46... Kxf4 {[%clk 0:00:28.9]} 47. b5 {[%clk 0:00:16.6]}
47... Ke5 {[%clk 0:00:29.1]} 48. c6 {[%clk 0:00:16.6]} 48... Kd6 {[%clk
0:00:28.3]} 49. cxb7 {[%clk 0:00:16.6]} 49... Kc7 {[%clk 0:00:28.7]} 50. bxa6
{[%clk 0:00:17.3]} 50... h5 {[%clk 0:00:27.2]} 51. Kd2 {[%clk 0:00:17.6]} 51...
Kb8 {[%clk 0:00:27.8]} 52. Ke3 {[%clk 0:00:18.1]} 52... Ka7 {[%clk 0:00:28.7]}
53. Kf4 {[%clk 0:00:18.3]} 53... Kxa6 {[%clk 0:00:29.6]} 54. b8=Q {[%clk
0:00:18.4]} 1-0

[Event "Early-Titled-Tuesday-Blitz-February-13-2024"]
[Site "Chess.com"]
[Date "2024.02.13"]
[Round "4"]
[White "WhiteKnight2612"]
[Black "PLAYER_2006_M"]
[Result "0-1"]
[WhiteElo "2870"]
[BlackElo "3011"]
[TimeControl "180+1"]
[EndTime "8:43:01 PST"]
[Termination "PLAYER_2006_M won by resignation"]

1. Nf3 {[%clk 0:03:00.9]} 1... Nf6 {[%clk 0:02:58.1]} 2. g3 {[%clk 0:03:01.8]}
2... e6 {[%clk 0:02:56.4]} 3. Bg2 {[%clk 0:03:02.7]} 3... d5 {[%clk 0:02:57]} 4.
O-O {[%clk 0:03:03.6]} 4... Be7 {[%clk 0:02:57.6]} 5. c4 {[%clk 0:03:03.1]} 5...
O-O {[%clk 0:02:57.7]} 6. d4 {[%clk 0:03:02.7]} 6... dxc4 {[%clk 0:02:57.8]} 7.
Ne5 {[%clk 0:03:00.8]} 7... Nc6 {[%clk 0:02:55.4]} 8. Bxc6 {[%clk 0:03:01.3]}
8... bxc6 {[%clk 0:02:56.1]} 9. Nxc6 {[%clk 0:03:02]} 9... Qe8 {[%clk
0:02:56.8]} 10. Qa4 {[%clk 0:03:01.8]} 10... Bd6 {[%clk 0:02:43.3]} 11. Qxc4
{[%clk 0:03:00.6]} 11... Bb7 {[%clk 0:02:42.1]} 12. Ne5 {[%clk 0:02:58.6]} 12...
c5 {[%clk 0:02:39.5]} 13. Nc3 {[%clk 0:02:55.1]} 13... Nd5 {[%clk 0:02:13.9]}
14. Ne4 {[%clk 0:02:37.7]} 14... Bxe5 {[%clk 0:02:01.9]} 15. dxe5 {[%clk
0:02:36.1]} 15... Nb6 {[%clk 0:01:43.9]} 16. Qc2 {[%clk 0:02:35.8]} 16... Bxe4
{[%clk 0:01:42.4]} 17. Qxe4 {[%clk 0:02:35.2]} 17... Rd8 {[%clk 0:01:43.1]} 18.
Be3 {[%clk 0:02:32.9]} 18... Rd5 {[%clk 0:01:36.2]} 19. Rac1 {[%clk 0:02:28.4]}
19... Qb5 {[%clk 0:01:34.8]} 20. b3 {[%clk 0:02:28]} 20... Qxe2 {[%clk
0:01:30.9]} 21. Rc2 {[%clk 0:02:27.7]} 21... Rxe5 {[%clk 0:01:22.1]} 22. Qxe5
{[%clk 0:01:53.3]} 22... Qxc2 {[%clk 0:01:20.1]} 23. Qxc5 {[%clk 0:01:28.3]}
23... Qxa2 {[%clk 0:01:18.1]} 24. b4 {[%clk 0:01:13.8]} 24... h6 {[%clk
0:01:17.7]} 25. Bd4 {[%clk 0:01:09.5]} 25... Qe2 {[%clk 0:00:51.6]} 26. Qe7
{[%clk 0:01:02.6]} 26... Nc4 {[%clk 0:00:43.9]} 27. Bc5 {[%clk 0:00:56.2]} 27...
Ra8 {[%clk 0:00:31.7]} 28. Rc1 {[%clk 0:00:35.4]} 28... Nd2 {[%clk 0:00:29.7]}
29. Be3 {[%clk 0:00:35.7]} 29... Nf3+ {[%clk 0:00:20.9]} 30. Kg2 {[%clk
0:00:36]} 30... Ne1+ {[%clk 0:00:21.5]} 31. Kg1 {[%clk 0:00:34.8]} 31... Nd3
{[%clk 0:00:20.5]} 32. Rc7 {[%clk 0:00:29.7]} 32... Qd1+ {[%clk 0:00:20.2]} 33.
Kg2 {[%clk 0:00:29.5]} 33... Ne1+ {[%clk 0:00:20.2]} 34. Kg1 {[%clk 0:00:29.1]}
34... Nc2+ {[%clk 0:00:16.7]} 35. Kg2 {[%clk 0:00:29.3]} 35... Nxe3+ {[%clk
0:00:17.4]} 36. fxe3 {[%clk 0:00:30.2]} 36... Qe2+ {[%clk 0:00:17.8]} 37. Kh3
{[%clk 0:00:29.8]} 37... Qf1+ {[%clk 0:00:18.4]} 38. Kh4 {[%clk 0:00:29.6]}
38... Qf5 {[%clk 0:00:15.5]} 39. g4 {[%clk 0:00:19.9]} 39... Qf2+ {[%clk
0:00:14.8]} 40. Kh3 {[%clk 0:00:20.4]} 40... Qf3+ {[%clk 0:00:15.1]} 41. Kh4
{[%clk 0:00:20.5]} 41... g5+ {[%clk 0:00:15.8]} 0-1

[Event "Early-Titled-Tuesday-Blitz-February-13-2024"]
[Site "Chess.com"]
[Date "2024.02.13"]
[Round "4"]
[White "rezamahdavi2008"]
[Black "Sina_Movahed"]
[Result "1-0"]
[WhiteElo "2850"]
[BlackElo "2986"]
[TimeControl "180+1"]
[EndTime "8:43:02 PST"]
[Termination "rezamahdavi2008 won by resignation"]

1. e4 {[%clk 0:03:00.9]} 1... c5 {[%clk 0:02:57.7]} 2. Nf3 {[%clk 0:02:59.7]}
2... d6 {[%clk 0:02:58.2]} 3. d4 {[%clk 0:02:58.5]} 3... cxd4 {[%clk 0:02:59.1]}
4. Nxd4 {[%clk 0:02:59.4]} 4... Nf6 {[%clk 0:02:59.7]} 5. Nc3 {[%clk 0:02:57.8]}
5... g6 {[%clk 0:02:59.8]} 6. Be3 {[%clk 0:02:49]} 6... a6 {[%clk 0:03:00]} 7.
f3 {[%clk 0:02:42.9]} 7... h5 {[%clk 0:02:58.9]} 8. Bc4 {[%clk 0:02:26.5]} 8...
Bg7 {[%clk 0:02:55.5]} 9. Bb3 {[%clk 0:02:24.7]} 9... Nbd7 {[%clk 0:02:52.8]}
10. Qd2 {[%clk 0:02:21.6]} 10... b5 {[%clk 0:02:51.7]} 11. a4 {[%clk 0:02:00]}
11... bxa4 {[%clk 0:02:26.3]} 12. Bxa4 {[%clk 0:01:49.3]} 12... Bb7 {[%clk
0:02:25.3]} 13. Nc6 {[%clk 0:01:42.9]} 13... Bxc6 {[%clk 0:02:24.3]} 14. Bxc6
{[%clk 0:01:42.6]} 14... Rb8 {[%clk 0:02:24.4]} 15. b3 {[%clk 0:01:24.6]} 15...
O-O {[%clk 0:02:21.7]} 16. O-O {[%clk 0:01:07.9]} 16... Ne5 {[%clk 0:01:56.4]}
17. Ba4 {[%clk 0:00:56.1]} 17... Qc7 {[%clk 0:01:18.6]} 18. Bd4 {[%clk
0:00:50.6]} 18... Rfc8 {[%clk 0:01:15.1]} 19. Ra2 {[%clk 0:00:45.6]} 19... Rb4
{[%clk 0:01:12.7]} 20. Ne2 {[%clk 0:00:37.3]} 20... Rbb8 {[%clk 0:00:52.4]} 21.
Kh1 {[%clk 0:00:25.3]} 21... h4 {[%clk 0:00:45.3]} 22. h3 {[%clk 0:00:23.1]}
22... Nh5 {[%clk 0:00:37.6]} 23. f4 {[%clk 0:00:20.4]} 23... Nc6 {[%clk
0:00:19.8]} 24. Bxg7 {[%clk 0:00:19]} 24... Kxg7 {[%clk 0:00:20.7]} 25. f5
{[%clk 0:00:11.4]} 25... Ne5 {[%clk 0:00:19.3]} 26. fxg6 {[%clk 0:00:09]} 26...
fxg6 {[%clk 0:00:19.5]} 27. Qg5 {[%clk 0:00:05.1]} 27... Rf8 {[%clk 0:00:18]}
28. Raa1 {[%clk 0:00:05.7]} 28... Qa7 {[%clk 0:00:06.5]} 29. Kh2 {[%clk
0:00:04.3]} 29... Rf6 {[%clk 0:00:05.6]} 30. Qxh4 {[%clk 0:00:04.1]} 30... Rbf8
{[%clk 0:00:04.9]} 31. Rxf6 {[%clk 0:00:04.3]} 31... Rxf6 {[%clk 0:00:05.8]} 32.
Ng3 {[%clk 0:00:02.8]} 32... Rf4 {[%clk 0:00:03.7]} 33. Nxh5+ {[%clk 0:00:02.8]}
1-0

[Event "Early-Titled-Tuesday-Blitz-February-13-2024"]
[Site "Chess.com"]
[Date "2024.02.13"]
[Round "4"]
[White "szefru"]
[Black "HelvertHernandez"]
[Result "1-0"]
[WhiteElo "2263"]
[BlackElo "1946"]
[TimeControl "180+1"]
[EndTime "8:43:03 PST"]
[Termination "szefru won on time"]

1. e4 {[%clk 0:03:00.9]} 1... c5 {[%clk 0:02:53.1]} 2. Nf3 {[%clk 0:03:00.6]}
2... Nc6 {[%clk 0:02:52]} 3. b3 {[%clk 0:02:59.3]} 3... Nf6 {[%clk 0:02:49.9]}
4. e5 {[%clk 0:02:59]} 4... Ng4 {[%clk 0:02:48.1]} 5. Bb2 {[%clk 0:02:59.2]}
5... Qc7 {[%clk 0:02:47.7]} 6. Qe2 {[%clk 0:02:56.1]} 6... d6 {[%clk 0:02:47.3]}
7. exd6 {[%clk 0:02:55.6]} 7... Qxd6 {[%clk 0:02:46.6]} 8. Nc3 {[%clk
0:02:52.3]} 8... Bf5 {[%clk 0:02:33.2]} 9. O-O-O {[%clk 0:02:48.6]} 9... e6
{[%clk 0:02:25.9]} 10. h3 {[%clk 0:02:48.5]} 10... Nf6 {[%clk 0:02:24.8]} 11. g4
{[%clk 0:02:46.3]} 11... Bg6 {[%clk 0:02:22.4]} 12. Bg2 {[%clk 0:02:42.9]} 12...
Be7 {[%clk 0:02:21.5]} 13. Nb5 {[%clk 0:02:34.4]} 13... Qd8 {[%clk 0:02:20]} 14.
Ne5 {[%clk 0:02:33.3]} 14... O-O {[%clk 0:02:11.2]} 15. Bxc6 {[%clk 0:02:29]}
15... bxc6 {[%clk 0:02:05.8]} 16. Nxc6 {[%clk 0:02:29.9]} 16... Qe8 {[%clk
0:02:04.2]} 17. Nxe7+ {[%clk 0:02:28.4]} 17... Qxe7 {[%clk 0:02:04]} 18. f3
{[%clk 0:02:12.9]} 18... Nd5 {[%clk 0:01:57.9]} 19. h4 {[%clk 0:02:09.1]} 19...
h6 {[%clk 0:01:52.2]} 20. h5 {[%clk 0:02:06.4]} 20... Bh7 {[%clk 0:01:51.8]} 21.
g5 {[%clk 0:02:06.3]} 21... hxg5 {[%clk 0:01:46.5]} 22. h6 {[%clk 0:02:05]}
22... Nf4 {[%clk 0:01:31.6]} 23. Qe5 {[%clk 0:01:53.2]} 23... f6 {[%clk
0:01:28]} 24. Qe3 {[%clk 0:01:36.9]} 24... Rfc8 {[%clk 0:01:06.6]} 25. d3 {[%clk
0:01:25.8]} 25... a6 {[%clk 0:01:00.1]} 26. Nc3 {[%clk 0:01:25]} 26... c4 {[%clk
0:00:51.9]} 27. dxc4 {[%clk 0:01:24.4]} 27... a5 {[%clk 0:00:46.9]} 28. a4
{[%clk 0:01:24.3]} 28... Rab8 {[%clk 0:00:44.3]} 29. hxg7 {[%clk 0:01:22.6]}
29... Qxg7 {[%clk 0:00:36.9]} 30. Ne4 {[%clk 0:01:19.4]} 30... e5 {[%clk
0:00:33.5]} 31. Rh6 {[%clk 0:01:02.6]} 31... Qxh6 {[%clk 0:00:25.6]} 32. Kb1
{[%clk 0:00:49.1]} 32... Rd8 {[%clk 0:00:23.8]} 33. Rg1 {[%clk 0:00:44.1]} 33...
Rd7 {[%clk 0:00:19.2]} 34. Nxg5 {[%clk 0:00:28]} 34... fxg5 {[%clk 0:00:17.4]}
35. Qxe5 {[%clk 0:00:28.2]} 35... Kf7 {[%clk 0:00:12.8]} 36. Qxb8 {[%clk
0:00:27.1]} 36... Qg6 {[%clk 0:00:09.5]} 37. Rc1 {[%clk 0:00:17.9]} 37... Rd1
{[%clk 0:00:06.4]} 38. Qc7+ {[%clk 0:00:15.9]} 38... Ke6 {[%clk 0:00:06.4]} 39.
Qc6+ {[%clk 0:00:14.4]} 39... Rd6 {[%clk 0:00:02.9]} 40. Re1+ {[%clk 0:00:12]}
1-0

[Event "Early-Titled-Tuesday-Blitz-February-13-2024"]
[Site "Chess.com"]
[Date "2024.02.13"]
[Round "4"]
[White "Sofia_Blokhin"]
[Black "SmirnovAlexandrA"]
[Result "1/2-1/2"]
[WhiteElo "2256"]
[BlackElo "2597"]
[TimeControl "180+1"]
[EndTime "8:43:05 PST"]
[Termination "Game drawn by repetition"]

1. d4 {[%clk 0:03:00.9]} 1... Nf6 {[%clk 0:02:52.2]} 2. c4 {[%clk 0:03:00.6]}
2... d6 {[%clk 0:02:50.1]} 3. Nc3 {[%clk 0:02:59]} 3... g6 {[%clk 0:02:49.7]} 4.
e4 {[%clk 0:02:59]} 4... Bg7 {[%clk 0:02:49]} 5. f3 {[%clk 0:02:59.3]} 5... O-O
{[%clk 0:02:43.7]} 6. Be3 {[%clk 0:02:59.1]} 6... c5 {[%clk 0:02:39.3]} 7. Qd2
{[%clk 0:02:52.4]} 7... cxd4 {[%clk 0:02:35.7]} 8. Bxd4 {[%clk 0:02:51.8]} 8...
Nc6 {[%clk 0:02:32.9]} 9. Be3 {[%clk 0:02:51.6]} 9... Be6 {[%clk 0:02:29.7]} 10.
O-O-O {[%clk 0:02:47.8]} 10... Qa5 {[%clk 0:02:18.9]} 11. Kb1 {[%clk 0:02:46]}
11... Rfc8 {[%clk 0:02:08.5]} 12. Nd5 {[%clk 0:02:31.3]} 12... Qxd2 {[%clk
0:01:57.2]} 13. Rxd2 {[%clk 0:02:29.3]} 13... Bxd5 {[%clk 0:01:43.2]} 14. exd5
{[%clk 0:02:20.9]} 14... Ne5 {[%clk 0:01:32.7]} 15. b3 {[%clk 0:02:20.5]} 15...
Rab8 {[%clk 0:01:27.3]} 16. a4 {[%clk 0:02:17.3]} 16... a5 {[%clk 0:01:23.5]}
17. Ne2 {[%clk 0:02:09.3]} 17... Nfd7 {[%clk 0:01:10.8]} 18. Nc3 {[%clk
0:02:04.7]} 18... Nc5 {[%clk 0:01:10.6]} 19. Kc2 {[%clk 0:01:47.4]} 19... Na6
{[%clk 0:00:58.4]} 20. Nb5 {[%clk 0:01:35.1]} 20... Nb4+ {[%clk 0:00:58.2]} 21.
Kb1 {[%clk 0:01:32.1]} 21... b6 {[%clk 0:00:54.5]} 22. Be2 {[%clk 0:01:26.4]}
22... Nd7 {[%clk 0:00:52.2]} 23. Re1 {[%clk 0:01:17.6]} 23... Nc5 {[%clk
0:00:52]} 24. Bxc5 {[%clk 0:01:13.1]} 24... bxc5 {[%clk 0:00:51.9]} 25. Bd1
{[%clk 0:01:09.9]} 25... Bf6 {[%clk 0:00:45.3]} 26. Bc2 {[%clk 0:01:07.6]} 26...
Kg7 {[%clk 0:00:34.1]} 27. Rde2 {[%clk 0:01:06.7]} 27... h5 {[%clk 0:00:29.4]}
28. g3 {[%clk 0:01:04.4]} 28... g5 {[%clk 0:00:26.2]} 29. h3 {[%clk 0:01:00.2]}
29... Rh8 {[%clk 0:00:25.5]} 30. f4 {[%clk 0:00:53.7]} 30... gxf4 {[%clk
0:00:23.1]} 31. gxf4 {[%clk 0:00:53.8]} 31... Rbg8 {[%clk 0:00:22.5]} 32. Rg2+
{[%clk 0:00:48.4]} 32... Kf8 {[%clk 0:00:22.4]} 33. Reg1 {[%clk 0:00:47.3]}
33... Rxg2 {[%clk 0:00:19.5]} 34. Rxg2 {[%clk 0:00:47.5]} 34... Rg8 {[%clk
0:00:20.4]} 35. Rxg8+ {[%clk 0:00:35.2]} 35... Kxg8 {[%clk 0:00:21.3]} 36. Bd1
{[%clk 0:00:35.5]} 36... Kg7 {[%clk 0:00:20.5]} 37. Bxh5 {[%clk 0:00:34.9]}
37... Nd3 {[%clk 0:00:16.8]} 38. f5 {[%clk 0:00:34.3]} 38... Bh4 {[%clk
0:00:15.4]} 39. Na7 {[%clk 0:00:28.2]} 39... Nf4 {[%clk 0:00:15.9]} 40. Bg4
{[%clk 0:00:26.9]} 40... Kf6 {[%clk 0:00:16.1]} 41. Nc6 {[%clk 0:00:26.5]} 41...
Be1 {[%clk 0:00:13.4]} 42. Kc2 {[%clk 0:00:26.1]} 42... Ng2 {[%clk 0:00:09.7]}
43. Bf3 {[%clk 0:00:22.5]} 43... Nf4 {[%clk 0:00:09.2]} 44. Bg4 {[%clk
0:00:21.8]} 44... Ng2 {[%clk 0:00:09.2]} 45. Bf3 {[%clk 0:00:21.9]} 45... Nf4
{[%clk 0:00:09.4]} 46. Bg4 {[%clk 0:00:22.3]} 1/2-1/2